Cogmind - Beta 13 @@@ ROGUE MODE // 2024.04.08 @ 09:37:04 Player: Hejka26 Result: Destroyed by S-10 Pest via exploding Nuclear Reactor Performance ------------- Evolutions (0) 0 Regions Visited (1) 200 Robots Destroyed (5) 25 Value Destroyed (146) 146 Prototype IDs (0) 0 Alien Tech Used (0) 0 Bonus (0) 0 TOTAL SCORE: 371 Bonus ------- None Cogmind --------- Core Integrity 0/250 Matter 258/300 Energy 94/100 System Corruption 0% Temperature Cool (0) Movement Walking (120) Location -10/Materials Parts ------- > --- POWER (1) -------- (None) > --- PROPULSION (2) --- Aluminum Leg > --- UTILITY (2) ------ Targeting Computer > --- WEAPON (2) ------- (None) > --- INVENTORY (5) ---- Ion Engine Heat Sink Peak State ------------ > --- POWER ------------ Light Ion Engine > --- PROPULSION ------- Aluminum Leg Aluminum Leg > --- UTILITY ---------- Targeting Computer Weapon Shielding > --- WEAPON ----------- Assault Rifle Light Assault Rifle > --- INVENTORY -------- Ion Engine Aluminum Leg Heat Sink [Rating: 7] Favorites ----------- Power Light Ion Engine Engine Light Ion Engine Propulsion Aluminum Leg Leg Aluminum Leg Utility Targeting Computer Storage Huge Storage Unit Processor Targeting Computer Protection Weapon Shielding Weapon Light Assault Rifle Ballistic Gun Light Assault Rifle Build | -11 -10 ------- Run | Yrd Mat Slots Evolved . | . . Power . | . . Propulsion . | . . Utility . | . . Weapon . | . . Parts Attached 10 | 6 4 Power 1 | 1 . Engine 1 | 1 . Core . | . . Reactor . | . . Propulsion 4 | 3 1 Treads . | . . Leg 4 | 3 1 Wheel . | . . Hover . | . . Flight . | . . Utility 3 | . 3 Device . | . . Storage 1 | . 1 Processor 1 | . 1 Hackware . | . . Protection 1 | . 1 Artifact . | . . Weapon 2 | 2 . Energy Gun . | . . Energy Cannon . | . . Ballistic Gun 2 | 2 . Ballistic Cannon . | . . Launcher . | . . Special Weapon . | . . Impact Weapon . | . . Slashing Weapon . | . . Piercing Weapon . | . . Special Melee Weapon . | . . Unidentified Prototypes . | . . Parts Lost 6 | . 6 Power 1 | . 1 Propulsion 2 | . 2 Utility 1 | . 1 Weapon 2 | . 2 Highest Loss Streak 6 | . 6 To Critical Strikes . | . . Average Slot Usage (%) 87 | . 87 Engine 12 | . 12 Leg 27 | . 27 Processor 12 | . 12 Protection 8 | . 8 Ballistic Gun 26 | . 26 Naked Turns . | . . Heaviest Build 86 | 6 86 Greatest Support 20 | 20 20 Greatest Overweight (x) 4 | . 4 Average Overweight (x) . | . . Largest Inventory Capacity 25 | 5 25 Average Capacity 5 | 5 5 Most Carried 4 | 3 4 Average Carried 1 | . 2 Final Capacity 5 | 5 5 Final Carried 2 | 1 2 Class Distribution -------------------- 100% | Mutant Dominant Class ---------------- Mutant | -10/Materials Resources | -11 -10 ----------- Run | Yrd Mat Matter Collected 374 | 280 94 Remotely . | . . Salvage Created 194 | 47 147 Parts 9 | 2 7 Haulers Intercepted . | . . Recyclers Shooed . | . . Parts Field Recycled . | . . Retrieved Matter . | . . Parts Self-Destructed . | . . Prevented . | . . Kills | -11 -10 ------- Run | Yrd Mat Combat Hostiles Destroyed 5 | 1 4 Guns 5 | 1 4 Classes Destroyed 2 | 1 1 Swarmer 1 | . 1 Grunt 4 | 1 3 Best Kill Streak 2 | 1 2 Combat Bots Only 2 | 1 2 Max Kills in Single Turn 1 | 1 1 Gunslinging . | . . Exploded . | . . Melee . | . . Uniques/NPCs Destroyed . | . . Combat | -11 -10 -------- Run | Yrd Mat Hostile Shots Fired 113 | 7 106 Missed 36 | 3 33 Damage Taken 785 | 46 739 Core 285 | . 285 Absorbed by Shields . | . . Redirected to Shielding 50 | . 50 Core Remaining (%) 100 | 100 . Volleys Fired 47 | 5 42 Largest 2 | 2 2 Hottest 40 | 40 40 Shots Fired 80 | 10 70 Gun 80 | 10 70 Cannon . | . . Launcher . | . . Special . | . . Kinetic 80 | 10 70 Thermal . | . . Explosive . | . . Electromagnetic . | . . Robot Hit Streak 9 | 2 9 Robot Miss Streak 5 | 3 5 Penetration Max . | . . Secondary Targets . | . . Shots Hit Robots 34 | 4 30 Core Hits 13 | 2 11 Critical Kills . | . . Critical Parts Destroyed . | . . Critical Strikes . | . . Melee Attacks . | . . Impact . | . . Slashing . | . . Piercing . | . . Sneak Attacks . | . . Combat Hostiles . | . . Follow-up Attacks . | . . Damage Inflicted 317 | 43 274 Guns 314 | 40 274 Cannons . | . . Explosions . | . . Melee . | . . Ramming 3 | 3 . Kinetic 314 | 40 274 Thermal . | . . Explosive . | . . Electromagnetic . | . . Impact . | . . Slashing . | . . Piercing . | . . Highest Corruption . | . . Average Corruption . | . . Corruption Purged . | . . Corruption Blocked . | . . Overload Shots . | . . Overflow Damage . | . . Projectiles . | . . Explosions . | . . Melee . | . . Knockbacks . | . . Impact . | . . Kinetic . | . . Secondary . | . . Self-Inflicted Damage . | . . Shots . | . . Rammed . | . . Targets Rammed 1 | 1 . Kicked 1 | 1 . Crushed . | . . Highest Temperature 12 | 6 12 Average Temperature 6 | 6 6 Received Heat Transfer 126 | 24 102 Siege Activations . | . . Robots Corrupted . | . . Combat Hostiles . | . . Parts Fried . | . . Impact Corruptions . | . . Robots Melted . | . . Combat Hostiles . | . . Parts Melted . | . . Heat Transferred . | . . Parts Sabotaged . | . . Parts Stolen . | . . Parts Stripped . | . . Power Chain Reactions . | . . Alert | -11 -10 ------- Run | Yrd Mat Peak Influence 133 | 20 133 Initial 13 | . 13 Average 37 | 12 58 Maximum Alert Level . | . . Low Security (%) 100 | 100 100 Level 1 . | . . Level 2 . | . . Level 3 . | . . Level 4 . | . . Level 5 . | . . High Security . | . . Max Security . | . . Squads Dispatched 2 | . 2 Investigation 1 | . 1 Extermination . | . . Reinforcement 1 | . 1 Assault . | . . Garrison . | . . Intercept . | . . Searches Triggered . | . . Construction Impeded . | . . Haulers Reinforced . | . . Active Scanning Responses . | . . Cargo Convoy Interrupts . | . . Stealth | -11 -10 --------- Run | Yrd Mat Distress Signals . | . . Communications Jammed . | . . Distress Signals . | . . Times Spotted 13 | 1 12 Peak Tracking Total 4 | 1 4 Tactical Retreats . | . . Traps | -11 -10 ------- Run | Yrd Mat Traps Triggered 1 | . 1 Indirectly . | . . Trap Hack Attempts . | . . Triggered . | . . Disarmed . | . . Reprogrammed . | . . Reused . | . . Traps Extracted . | . . Installed . | . . Triggered . | . . Machines | -11 -10 ---------- Run | Yrd Mat Machines Disabled . | . . Max in Single Turn . | . . Machines Repaired . | . . Machines Dismantled . | . . Machines Sabotaged . | . . Overloaded Fab Kills . | . . Hacking | -11 -10 --------- Run | Yrd Mat Machines Accessed . | . . Terminals . | . . Fabricators . | . . Repair Stations . | . . Recycling Units . | . . Scanalyzers . | . . Garrison Access . | . . Total Hacks . | . . Successful . | . . Failed . | . . Catastrophic . | . . Database Lockouts . | . . Manual . | . . Terminals . | . . Fabricators . | . . Repair Stations . | . . Recycling Units . | . . Scanalyzers . | . . Garrison Access . | . . Terminal Hacks . | . . Fabricator Hacks . | . . Repair Station Hacks . | . . Recycling Unit Hacks . | . . Scanalyzer . | . . Garrison Access Hacks . | . . Unauthorized Hacks . | . . Terminals . | . . Fabricators . | . . Repair Stations . | . . Recycling Units . | . . Scanalyzers . | . . Garrison Access . | . . Data Cores Recovered . | . . Used . | . . Hacking Detections . | . . Full Trace Events . | . . Feedback Events . | . . Feedback Blocked . | . . Robot Schematics Acquired . | . . Robots Built . | . . Authchips . | . . Time . | . . Total Robot Build Rating . | . . Part Schematics Acquired . | . . Parts Built . | . . Authchips . | . . Time . | . . Total Part Build Rating . | . . Parts Repaired . | . . Time . | . . Parts Recycled . | . . Recycled Matter . | . . Retrieved Matter . | . . Retrieved Components . | . . Parts Scanalyzed . | . . Part Schematics Acquired . | . . Parts Damaged . | . . Bothacking | -11 -10 ------------ Run | Yrd Mat Used RIF Installer . | . . Robots Hacked . | . . Non-combat . | . . Combat . | . . Robot Hacks Applied . | . . Relay Couplers Released . | . . Fabnet Peak Effective % . | . . Robots Rewired . | . . Allies Hacked . | . . Hacks Repelled . | . . Allies | -11 -10 -------- Run | Yrd Mat Total Allies . | . . Largest Group . | . . Highest-Rated Group . | . . Highest-Rated Ally . | . . Total Orders . | . . Ally Attacks . | . . Total Damage . | . . Kills . | . . Allies Corrupted . | . . Allies Melted . | . . Intel | -11 -10 ------- Run | Yrd Mat Robot Analysis Total . | . . Derelict Logs Recovered . | . . Drone Launches . | . . Drone Recoveries . | . . Exploration | -11 -10 ------------- Run | Yrd Mat Turns Passed 645 | 296 349 Spaces Moved 305 | 122 183 Core 19 | 19 . Treads . | . . Legs 286 | 103 183 Wheels . | . . Hover . | . . Flight . | . . Fastest Speed 50 | 50 120 Average Speed 118 | 109 124 Slowest Speed 400 | 120 400 Overloaded Moves . | . . Propulsion Burnouts . | . . Robots Hopped . | . . Cave-ins Triggered . | . . Exploration Rate (%) 18 | 8 29 Regions Visited 1 Branch Regions . Pre-discovered Areas . | . . Known Exits Taken . | . . Unknown Exits Taken 1 | 1 . Scrap Searched . | . . Spaces Dug . | . . Terrain Destroyed . | . . Melee . | . . Projectile . | . . AOE . | . . Terrain Rammed . | . . Walls Destroyed . | . . Machines Disabled . | . . Actions | -11 -10 --------- Run | Yrd Mat Total 517 | 275 242 Wait 143 | 136 7 Move 304 | 121 183 Hop . | . . Pick Up 11 | 6 5 Fast Attach . | . . Attach 9 | 5 4 Detach . | . . Swap 1 | 1 . Drop 1 | . 1 Fire 47 | 5 42 Melee . | . . Ram . | . . Kick 1 | 1 . Crush . | . . Escape Stasis . | . . Rewire . | . . Trap . | . . Miscellaneous . | . . Route ------- -11/Scrapyard -10/Materials (discovered 1 exit: [*Mat]) History --------- Turn | Location | Event 2 | -11/Scrapyard | Met Revision 17 71 | -11/Scrapyard | Discovered new exit (range 8) 297 | -11/Scrapyard | Entered Materials 337 | -10/Materials | Build established: Mutant 539 | -10/Materials | Discovered new exit (range 5) 628 | -10/Materials | Core integrity fell below 50% 646 | -10/Materials | Destroyed by S-10 Pest via exploding Nuclear Reactor Last Messages --------------- G-34 Mercenary destroyed. K-01 Serf collects debris. Acquired 16 matter. U-05 Engineer lays Concrete. EXIT=FOUND K-01 Serf cleans the Nuclear Reactor. Lgt. Ion Engine destroyed. S-10 Pest destroyed. K-01 Serf collects debris. [Achievement: Storm Trooper] Assault Rifle destroyed. K-01 Serf collects debris. R-06 Scavenger collects Flight Unit. Weapon Shielding destroyed. K-01 Serf collects debris. Aluminum Leg destroyed. K-01 Serf collects debris. Lgt. Assault Rifle destroyed. Nuclear Reactor explodes. Aluminum Leg destroyed. Map ----- +----------------------------------------------------+ | ????????#####+## ##### # #????????????? | | ????????# ######???# # #????????????? | | ????????# #????????# + #????????????? | | ????????# #????????# # #????????????? | | ????????# * =#????????# # #????????????? | | ????????# * #??############## #????????????? | | ????????# * #??# #????????????? | | ????????########??# #????????????? | | ??????????????????# #????????????? | | ??????????????????# #????????????? | | ??????????????????# #????????????? | | ?????############### a #????????????? | | ?????# # """ #????????????? | | ?????# """ """ """ # """ ######## | | ?????# """ """ """ # """ | | ?????# """ """ """ # | | ?????# # "" | | ?????# [! # """ ######### "T | | ?????###########+### """ #???????? "" " | | ?????????????# % r # """ #????????? ??? | | ?????????????# #????????? ???? | | ?????????????# t #?????????? ???? | | ?????????????# #?????????? """ [??? | | ?????????????# #k w #???????????""" ??? | | ?????????????## ## #???????????"????#?? | | ????########### ## @ #??????????????????? | | ????# #= ## #??????????????????? | | ????# +%[ ## """ ss#??????????????????? | | ????# #! ## """% ########???????????? | | ????# # ## """ ""?????? | | ????########### ## ????? | | ??????????# ## ????? | | ??????????# < ###+############## ""?????? | | ??????????# #? ??????????????? "??????? | | ??????????#########? ????????????????? "??????? | | ???????????????????? ??????????????????? ??????? | | ?????????????????????????????????????????????????? | | ?????????????????????????????????????????????????? | | ?????????????????????????????????????????????????? | | ?????????????????????????????????????????????????? | | ?????????????????????????????????????????????????? | | ?????????????????????????????????????????????????? | | ?????????????????????????????????????????????????? | | ?????????????????????????????????????????????????? | | ?????????????????????????????????????????????????? | | ?????????????????????????????????????????????????? | | ?????????????????????????????????????????????????? | | ?????????????????????????????????????????????????? | | ?????????????????????????????????????????????????? | | ?????????????????????????????????????????????????? | +----------------------------------------------------+ Best States ------------- Heat Dissipation 25 Energy Generation 10 Energy Capacity 125 Matter Stores 300 Matter Capacity 300 Sight Range 16 Terrain Scan Density 10 Weapon Shielding 33 Evasion (%) 55 Targeting Accuracy 5 Item Schematics ----------------- None Robot Schematics ------------------ None Fabricated ------------ Nothing Alien Tech Used ----------------- None Achievements -------------- Storm Trooper Challenges ------------ None Game ------ Seed CouplerAerolevBank Manual? 0 Play Time 00:09:53 Cumulative 0.6 hours Start 2024.04.08 @ 09:02:29 End 2024.04.08 @ 09:37:04 Sessions 1 Manual Loads 0 Difficulty Rogue Special Mode None Game No. 2 Rogue 2 Adventurer 0 Explorer 0 Win Type - Total 0 Types 0/0/0/0/0/0/0/0/0 Lore% 0 Gallery% 2 Achievement% 1 Wizard Run 0 Options --------- Layout 1 ASCII 0 Keyboard 0 Movement Mouse Keybinds 0 Fullscreen 2 Font 24/Smallcaps Map View 50x35 Zoom Use 0% Tactical HUD 0 Map Filters NONE Filters NONE Steam 1 RUN: 958e1cf3-2b3b-48f7-bd69-de9820f15bde